bitfinex-derivatives/quotes_ETHF0:USTF0_20260118
["timestamp","ask_amount","ask_price","bid_price","bid_amount"]
[1768725291293,0.95636281,3312.1,3310.9,0.97358003]
[1768725291489,0.95636281,3312.0,3310.9,0.97358003]
[1768725291701,0.95636281,3311.9,3310.9,0.97358003]
[1768725291999,0.30230645,3312.2,3310.9,0.97358003]
[1768725292190,0.95636281,3312.1,3310.9,0.97358003]
[1768725292392,0.95636281,3312.0,3310.9,0.97358003]
[1768725292589,0.95636281,3311.9,3310.9,0.97358003]
[1768725292803,0.30230645,3312.2,3310.9,0.97358003]
[1768725293003,0.95636168,3312.1,3310.9,0.97358003]
[1768725293304,0.95636168,3312.0,3310.9,0.97358003]
[1768725293504,0.95636168,3311.9,3310.9,0.97358003]
[1768725293703,0.30230645,3312.2,3310.9,0.97358003]
[1768725294003,0.95636113,3312.1,3311.0,0.97358003]
[1768725294305,0.95636113,3312.0,3311.0,0.97358003]
[1768725295305,0.95636113,3312.0,3310.6,2.77175821]
[1768725302808,0.31218797,3312.5,3310.9,0.97349313]
[1768725303011,0.95558386,3312.4,3310.9,1.28551593]
[1768725303205,0.31218797,3312.5,3310.9,1.28551593]
[1768725303407,0.95558419,3312.4,3310.9,1.28551593]
[1768725303604,0.31218797,3312.5,3310.9,1.28551593]
[1768725303801,0.95495018,3312.4,3310.9,1.28551593]
[1768725304005,0.31218797,3312.5,3310.9,1.28551593]
[1768725304203,0.95495021,3312.4,3310.9,1.28551593]
[1768725304502,0.31218797,3312.5,3310.9,1.28551593]
[1768725304702,0.95467243,3312.4,3310.9,1.28551593]
[1768725304902,0.31218797,3312.5,3310.9,1.28551593]
[1768725306016,0.31218797,3312.5,3310.9,1.43151593]
[1768725310926,0.31218797,3312.5,3311.0,0.3120228]
[1768725311114,0.00283956,3312.8,3311.0,0.3120228]
[1768725311315,0.953907,3312.7,3311.1,0.3120228]
[1768725311616,0.953907,3312.6,3311.1,0.3120228]
[1768725311807,0.00283956,3312.8,3311.1,0.3120228]
[1768725312008,0.95383856,3312.7,3311.1,0.3120228]
[1768725312211,0.95383856,3312.6,3311.1,0.3120228]
[1768725312420,0.00283956,3312.8,3311.1,0.3120228]
[1768725312719,0.95376682,3312.7,3311.1,0.3120228]
[1768725313018,0.95376682,3312.6,3311.1,0.3120228]
[1768725313319,0.00283956,3312.8,3311.1,0.3120228]
[1768725313508,0.95370882,3312.7,3311.1,0.3120228]
[1768725313709,0.95370882,3312.6,3311.1,0.3120228]
[1768725314019,0.31502753,3312.8,3311.1,0.3120228]
[1768725314318,0.95370863,3312.7,3311.1,0.3120228]
[1768725314619,0.95370863,3312.6,3311.1,0.3120228]
[1768725314820,0.31502753,3312.8,3311.1,0.3120228]
[1768725315020,0.95366293,3312.7,3311.1,0.3120228]
[1768725315218,0.95366293,3312.6,3311.1,0.3120228]
[1768725315521,0.31502753,3312.8,3311.1,0.3120228]
[1768725315823,0.95360582,3312.7,3311.1,0.3120228]
[1768725316014,0.95360582,3312.6,3311.1,0.3120228]
[1768725316214,0.31502753,3312.8,3311.1,0.3120228]
[1768725316422,0.95359783,3312.7,3311.1,0.3120228]
[1768725316628,0.95359783,3312.6,3311.1,0.3120228]
[1768725316923,0.31502753,3312.8,3311.1,0.3120228]
[1768725317110,0.95357404,3312.7,3311.3,0.97349313]
[1768725317310,0.31502753,3312.8,3311.3,0.97349313]
[1768725317512,0.95354401,3312.7,3311.3,0.97349313]
[1768725317719,0.31502753,3312.8,3311.3,0.97349313]
[1768725317922,0.95354402,3312.7,3311.3,0.97349313]
[1768725318122,0.31502753,3312.8,3311.3,0.97349313]
[1768725318422,0.95354538,3312.7,3311.3,0.97349313]
[1768725318625,0.31502753,3312.8,3311.3,0.97349313]
[1768725318823,0.95352939,3312.7,3311.3,0.97349313]
[1768725319024,0.31502753,3312.8,3311.3,0.97349313]
[1768725319320,0.95352594,3312.7,3311.3,1.28551593]
[1768725319517,0.31502753,3312.8,3311.3,1.28551593]
[1768725319725,0.00283956,3312.8,3311.4,0.3120228]
[1768725319919,0.00283956,3312.8,3311.7,0.97349313]
[1768725328224,0.30750091,3312.8,3311.6,0.146]
[1768725329625,0.30750091,3312.8,3311.5,2.416]
[1768725355346,0.95185574,3312.7,3311.5,2.416]
[1768725355546,0.30750091,3312.8,3311.5,2.416]
[1768725355746,0.95185575,3312.7,3311.5,2.416]
[1768725356046,0.30750091,3312.8,3311.5,2.416]
[1768725356248,0.95185574,3312.7,3311.5,2.416]
[1768725356447,0.30750091,3312.8,3311.5,2.416]
[1768725356644,0.00283956,3312.8,3311.6,0.31702547]
[1768725356949,0.006036,3313.4,3311.9,0.31702547]
[1768725357145,0.95195262,3313.3,3311.9,0.31702547]
[1768725357339,0.95195262,3313.2,3312.3,0.97270306]
[1768725357539,0.95195262,3313.1,3312.3,0.97270306]
[1768725357741,0.00315967,3313.1,3312.3,0.97270306]
[1768725361651,0.00315967,3313.1,3311.9,0.31702547]
[1768725361952,0.00315967,3313.1,3312.4,0.97270306]
[1768725365744,0.97586273,3313.1,3311.8,0.97270306]
[1768725365944,0.2997454,3313.0,3311.7,0.15102]
[1768725367452,0.2997454,3313.0,3311.7,1.12372306]
[1768725371655,0.2997454,3313.0,3311.7,0.15102]
[1768725373752,0.2997454,3313.0,3311.7,1.12372306]
[1768725383971,0.95138747,3312.9,3311.7,0.97270306]
[1768725384267,1.27244846,3313.0,3311.7,0.97270306]
[1768725384473,0.95142506,3312.9,3311.7,0.97270306]
[1768725384657,1.27244846,3313.0,3311.7,0.97270306]
[1768725384860,0.97270306,3312.4,3311.4,0.146]
[1768725385064,1.27578343,3312.6,3311.4,0.146]
[1768725385859,1.2567788,3312.5,3311.4,0.146]
[1768725386059,0.30308037,3312.5,3311.4,0.146]
[1768725388071,0.30308037,3312.5,3311.1,0.97270306]
[1768725389379,1.27578343,3312.5,3311.1,0.97270306]
[1768725389772,0.97270306,3312.1,3310.7,2.01980163]
[1768725389968,0.97270306,3312.1,3310.8,1.3313798]
[1768725390381,1.27578343,3312.3,3311.0,0.97270306]
[1768725390673,0.30308037,3312.2,3311.0,0.97270306]
[1768725390879,0.97270306,3312.1,3310.8,0.97270306]
[1768725391078,1.27578343,3312.1,3310.8,0.97270306]
[1768725392985,0.30308037,3312.1,3310.8,0.97270306]
[1768725393184,0.30308037,3312.1,3311.0,0.97270306]
[1768725397881,0.30308037,3312.1,3310.6,0.44102039]
[1768725398088,0.97270306,3311.7,3310.6,0.146]
[1768725398272,0.97270306,3311.7,3310.3,1.12379306]
[1768725398476,0.29153274,3311.8,3310.5,0.97270306]
[1768725400289,0.29153274,3311.8,3310.4,0.97270306]
[1768725401394,0.29153274,3311.4,3310.2,0.00217076]
[1768725403193,0.29153274,3311.4,3310.5,0.97270306]
[1768725403381,0.29153274,3311.8,3310.5,0.97270306]
[1768725404094,0.29153274,3311.8,3310.7,0.97270306]
[1768725413402,0.95141312,3311.7,3310.7,0.97270306]
[1768725413600,0.29153274,3311.8,3310.7,0.97270306]
[1768725413793,0.95141312,3311.7,3310.7,0.97270306]
[1768725413993,0.29153274,3311.8,3310.7,0.97270306]
[1768725414194,0.95141312,3311.7,3310.7,0.97270306]
[1768725414401,0.29153274,3311.8,3310.7,0.97270306]
[1768725414602,0.9518054,3311.7,3310.7,0.97270306]
[1768725414903,0.29153274,3311.8,3310.7,0.97270306]
[1768725415098,0.94882323,3311.7,3310.7,0.97270306]
[1768725415306,0.29153274,3311.8,3310.7,0.97270306]
[1768725415505,0.94908361,3311.7,3310.7,0.97270306]
[1768725415710,0.29153274,3311.8,3310.7,0.97270306]
[1768725416005,0.9490836,3311.7,3310.7,0.97270306]
[1768725416306,0.94931588,3311.6,3310.7,0.97270306]
[1768725416498,0.29153274,3311.8,3310.7,0.97270306]
[1768725416699,0.94931588,3311.7,3310.7,0.97270306]
[1768725416898,0.94931588,3311.6,3310.7,0.97270306]
[1768725417098,0.29153274,3311.8,3310.7,0.97270306]
[1768725417313,0.94931588,3311.7,3310.2,1.27073208]
[1768725417605,0.94931588,3311.6,3310.2,1.27073208]
[1768725417907,0.29153274,3311.8,3310.2,1.27073208]
[1768725418108,0.94959018,3311.7,3310.3,0.29479762]
[1768725418305,0.94959018,3311.6,3310.3,0.29479762]
[1768725418503,0.29153274,3311.8,3310.3,0.29479762]
[1768725418806,0.94994193,3311.7,3310.3,0.29479762]
[1768725419006,0.94994193,3311.6,3310.3,0.29479762]
[1768725419200,0.29153274,3311.8,3310.3,0.29479762]
[1768725419506,0.94994175,3311.7,3310.3,0.29479762]
[1768725419708,0.94994175,3311.6,3310.3,0.29479762]
[1768725419908,0.29153274,3311.8,3310.3,0.29479762]
[1768725420109,0.94996924,3311.7,3310.3,0.29479762]
[1768725420310,0.94996924,3311.6,3310.3,0.29479762]
[1768725420604,0.29153274,3311.8,3310.3,0.29479762]
[1768725420905,0.94996982,3311.7,3310.3,0.29479762]
[1768725421100,0.94996982,3311.6,3310.3,0.29479762]
[1768725421291,0.29153274,3311.8,3310.3,0.29479762]
[1768725421491,0.95012811,3311.7,3310.3,0.29479762]
[1768725421705,0.95012811,3311.6,3310.3,0.29479762]
[1768725421909,0.29153274,3311.8,3310.3,0.29479762]
[1768725422110,0.9501264,3311.7,3310.3,0.29479762]
[1768725422312,0.9501264,3311.6,3310.3,0.29479762]
[1768725422532,0.2918094,3311.7,3310.2,0.97593446]
[1768725422809,1.24196468,3311.6,3310.2,0.97593446]
[1768725423001,0.2918094,3311.6,3310.2,0.97593446]
[1768725425405,0.95067196,3311.5,3310.2,0.97593446]
[1768725425704,0.2918094,3311.6,3310.2,0.97593446]
[1768725425902,0.95067196,3311.5,3310.2,0.97593446]
[1768725426106,0.2918094,3311.6,3310.2,0.97593446]
[1768725426307,0.95069677,3311.5,3310.2,0.97593446]
[1768725426507,0.2918094,3311.6,3310.2,0.97593446]
[1768725426708,0.95094226,3311.5,3310.2,0.97593446]
[1768725427007,0.2918094,3311.6,3310.2,0.97593446]
[1768725427210,0.95094226,3311.5,3310.2,0.97593446]
[1768725427513,0.2918094,3311.6,3310.2,0.97593446]
[1768725427714,0.95132345,3311.5,3310.2,0.97593446]
[1768725427904,0.2918094,3311.6,3310.2,0.97593446]
[1768725428105,0.95132345,3311.5,3310.2,0.97593446]
[1768725428306,0.2918094,3311.6,3310.2,0.97593446]
[1768725428505,0.9515431,3311.5,3310.2,0.97593446]
[1768725428707,0.2918094,3311.6,3310.2,0.97593446]
[1768725428905,0.9515431,3311.5,3310.2,0.97593446]
[1768725429207,1.24336656,3311.4,3310.2,0.00217076]
[1768725429403,1.24336656,3311.3,3310.2,0.00217076]
[1768725429606,0.2918094,3311.3,3310.2,0.00217076]
[1768725430414,0.95176323,3311.2,3310.2,0.00217076]
[1768725430614,0.2918094,3311.3,3310.2,0.00217076]
[1768725430817,0.95184734,3311.2,3310.2,0.00217076]
[1768725431017,0.2918094,3311.3,3310.2,0.00217076]
[1768725431311,0.9518474,3311.2,3310.2,0.00217076]
[1768725431516,0.2918094,3311.3,3310.2,0.00217076]
[1768725431716,0.95177304,3311.2,3310.2,0.00217076]
[1768725431916,0.2918094,3311.3,3310.2,0.00217076]
[1768725432117,0.95177244,3311.2,3310.2,0.00217076]
[1768725432317,0.2918094,3311.3,3310.2,0.00217076]
[1768725432518,0.95165347,3311.2,3310.2,0.00217076]
[1768725432711,0.2918094,3311.3,3310.2,0.00217076]
[1768725432911,0.95165297,3311.2,3310.2,0.00217076]
[1768725433215,0.2918094,3311.3,3310.2,0.00217076]
[1768725433405,0.95156172,3311.2,3310.2,0.00217076]
[1768725433605,0.2918094,3311.3,3310.2,0.00217076]
[1768725433806,0.95156172,3311.2,3310.2,0.00217076]
[1768725434009,0.2918094,3311.3,3310.2,0.00217076]
[1768725434208,0.95156172,3311.2,3310.2,0.00217076]
[1768725434404,0.2918094,3311.3,3310.2,0.00217076]
[1768725434610,0.95148537,3311.2,3310.2,0.00217076]
[1768725434811,0.2918094,3311.3,3310.2,0.00217076]
[1768725435011,0.95148537,3311.2,3310.2,0.00217076]
[1768725435212,0.2918094,3311.3,3310.2,0.00217076]
[1768725435408,0.95143454,3311.2,3310.2,0.00217076]
[1768725435709,0.2918094,3311.7,3310.4,0.9737637]
[1768725435908,0.95137901,3311.6,3310.4,0.9737637]
[1768725436107,0.95137901,3311.5,3310.4,0.9737637]
[1768725436317,0.95137901,3311.4,3310.4,0.9737637]
[1768725436518,0.2918094,3311.7,3310.4,0.9737637]
[1768725436720,0.95136138,3311.6,3310.4,0.9737637]
[1768725436922,0.95136138,3311.5,3310.4,0.9737637]
[1768725437119,0.95136138,3311.4,3310.4,0.9737637]
[1768725437425,0.2918094,3311.7,3310.4,0.9737637]
[1768725437624,0.9513626,3311.6,3310.4,0.9737637]
[1768725437923,0.9513626,3311.5,3310.4,0.9737637]
[1768725438121,0.9513626,3311.4,3310.4,0.9737637]
[1768725438323,0.2918094,3311.7,3310.4,0.9737637]
[1768725438526,0.95136069,3311.6,3310.4,0.9737637]
[1768725438826,0.95136069,3311.5,3310.4,0.9737637]
[1768725439026,0.2918094,3311.7,3310.4,0.9737637]
[1768725439225,0.95136069,3311.6,3310.4,0.9737637]
[1768725439426,0.95136069,3311.5,3310.4,0.9737637]
[1768725439628,0.2918094,3311.7,3310.4,0.9737637]
[1768725439825,0.95135873,3311.6,3310.4,0.9737637]
[1768725440024,0.95135873,3311.5,3310.4,0.9737637]
[1768725440223,0.2918094,3311.7,3310.4,0.9737637]
[1768725440416,0.95135691,3311.6,3310.4,0.9737637]
[1768725440619,0.95135691,3311.5,3310.4,0.9737637]
[1768725440819,0.2918094,3311.7,3310.4,0.9737637]
[1768725441019,0.95135649,3311.6,3310.4,0.9737637]
[1768725441321,0.95135649,3311.5,3310.4,0.9737637]
[1768725441519,0.2918094,3311.7,3310.4,0.9737637]
[1768725441726,0.9513542,3311.6,3310.4,0.9737637]
[1768725441927,0.9513542,3311.5,3310.4,0.9737637]
[1768725442127,0.2918094,3311.7,3310.4,0.9737637]
[1768725442329,0.95137373,3311.6,3310.4,0.9737637]
[1768725442528,0.95137373,3311.5,3310.4,0.9737637]
[1768725442827,0.2918094,3311.7,3310.4,0.9737637]
[1768725443031,0.95136173,3311.6,3310.4,0.9737637]
[1768725443220,0.95136173,3311.5,3310.4,0.9737637]
[1768725443530,0.2918094,3311.7,3310.4,0.9737637]
[1768725443728,0.95136097,3311.6,3310.4,0.9737637]
[1768725443931,0.95136097,3311.5,3310.4,0.9737637]
[1768725444229,0.2918094,3311.7,3310.4,0.9737637]
[1768725444427,0.9513602,3311.6,3310.4,0.9737637]
[1768725444725,0.9513602,3311.5,3310.4,0.9737637]
[1768725444926,0.2918094,3311.7,3310.4,0.9737637]
[1768725445128,0.9488097,3311.6,3310.4,0.9737637]
[1768725445326,0.2918094,3311.7,3310.4,0.9737637]
[1768725445327,0.9488097,3311.5,3310.4,0.9737637]
[1768725445526,0.2918094,3311.7,3310.4,0.9737637]
[1768725445828,0.94880891,3311.6,3310.4,0.9737637]
[1768725446020,0.94880891,3311.5,3310.4,0.9737637]
[1768725446216,0.2918094,3311.7,3310.4,0.9737637]
[1768725446417,0.94881991,3311.6,3310.4,0.9737637]
[1768725446730,0.94881991,3311.5,3310.4,0.9737637]
[1768725446917,0.2918094,3311.7,3310.4,0.9737637]
[1768725447121,0.94880792,3311.6,3310.4,0.9737637]
[1768725447326,0.94880792,3311.5,3310.4,0.9737637]
[1768725447529,0.2918094,3311.7,3310.4,0.9737637]
[1768725447727,0.94880714,3311.6,3310.4,0.9737637]
[1768725447922,0.94880714,3311.5,3310.4,0.9737637]
[1768725448127,0.2918094,3311.7,3310.3,0.9737637]
[1768725448424,1.24643021,3311.6,3310.3,0.9737637]
[1768725448620,0.94881926,3311.5,3310.3,0.9737637]
[1768725448824,0.29761095,3311.6,3310.3,0.9737637]
[1768725449119,0.94880887,3311.5,3310.3,0.9737637]
[1768725449323,0.29761095,3311.6,3310.3,0.9737637]
[1768725449518,0.94881082,3311.5,3310.3,0.9737637]
[1768725449734,0.29761095,3311.6,3310.3,0.9737637]
[1768725450030,0.94881082,3311.5,3310.3,0.9737637]
[1768725450230,0.29761095,3311.6,3310.3,0.9737637]
[1768725450420,0.94882243,3311.5,3310.3,0.9737637]
[1768725450621,0.29761095,3311.6,3310.3,0.9737637]
[1768725450822,0.94882243,3311.5,3310.3,0.9737637]
[1768725451030,0.29761095,3311.6,3310.3,0.9737637]
[1768725451231,0.94882322,3311.5,3310.3,0.9737637]
[1768725451432,0.29761095,3311.6,3310.3,0.9737637]
[1768725451631,0.94882473,3311.5,3310.3,0.9737637]
[1768725451831,0.29761095,3311.6,3310.3,0.9737637]
[1768725452033,0.94882473,3311.5,3310.3,0.9737637]
[1768725452227,0.29761095,3311.6,3310.3,0.9737637]
[1768725452434,0.94882834,3311.5,3310.3,0.9737637]
[1768725452633,0.29761095,3311.6,3310.3,0.9737637]
[1768725452933,0.94882834,3311.5,3310.3,0.9737637]
[1768725453133,0.29761095,3311.6,3310.3,0.9737637]
[1768725453334,0.94883169,3311.5,3310.3,0.9737637]
[1768725453535,0.29761095,3311.6,3310.3,0.9737637]
[1768725453736,0.94883169,3311.5,3310.3,0.9737637]
[1768725453938,0.29761095,3311.6,3310.3,0.9737637]
[1768725454129,0.94883169,3311.5,3310.3,0.9737637]
[1768725454331,0.29761095,3311.6,3310.3,0.9737637]
[1768725454630,0.94883484,3311.5,3310.3,0.9737637]
[1768725454830,0.29761095,3311.6,3310.3,0.9737637]
[1768725455029,0.94883484,3311.5,3310.3,0.9737637]
[1768725455231,0.29761095,3311.6,3310.3,0.9737637]
[1768725455532,0.94884197,3311.5,3310.3,0.9737637]
[1768725455730,0.29761095,3311.6,3310.3,0.9737637]
[1768725455927,0.94884197,3311.5,3310.3,0.9737637]
[1768725456130,0.29761095,3311.6,3310.3,0.9737637]
[1768725456430,0.94884927,3311.5,3310.3,0.9737637]
[1768725456631,0.29761095,3311.6,3310.3,0.9737637]
[1768725456840,0.94884927,3311.5,3310.3,0.9737637]
[1768725457032,0.29761095,3311.6,3310.3,0.9737637]
[1768725457231,0.94884927,3311.5,3310.3,0.9737637]
[1768725457432,0.29761095,3311.6,3310.3,0.9737637]
[1768725457631,0.94885676,3311.5,3310.3,0.9737637]
[1768725457838,0.29761095,3311.6,3310.3,0.9737637]
[1768725458038,0.94885676,3311.5,3310.3,0.9737637]
[1768725458231,0.29761095,3311.6,3310.3,0.9737637]
[1768725458433,0.94886392,3311.5,3310.3,0.9737637]
[1768725458727,0.29761095,3311.6,3310.3,0.9737637]
[1768725459030,0.94886392,3311.5,3310.3,0.9737637]
[1768725459231,0.29761095,3311.6,3310.3,0.9737637]
[1768725459440,0.94886045,3311.5,3310.3,0.9737637]
[1768725459641,0.29761095,3311.6,3310.3,0.9737637]
[1768725459839,0.94886045,3311.5,3310.3,0.9737637]
[1768725460048,0.29761095,3311.6,3310.3,0.9737637]
[1768725460341,0.94886045,3311.5,3310.3,0.9737637]
[1768725460643,0.29761095,3311.6,3310.3,0.9737637]
[1768725460839,0.94886767,3311.5,3310.3,0.9737637]
[1768725461039,0.29761095,3311.6,3310.3,0.9737637]
[1768725461242,0.94886751,3311.5,3310.3,0.9737637]
[1768725461435,0.29761095,3311.6,3310.3,0.9737637]
[1768725461742,0.316394,3312.0,3310.3,0.9737637]
[1768725461934,1.26531868,3311.9,3310.3,0.9737637]
[1768725462133,0.94892468,3311.8,3310.3,0.9737637]
[1768725462434,0.94892468,3311.7,3310.3,0.9737637]
[1768725462634,0.94892468,3311.6,3310.3,0.9737637]
[1768725462834,0.316394,3311.9,3310.3,0.9737637]
[1768725463030,1.26537174,3311.8,3310.3,0.9737637]
[1768725463242,0.94897774,3311.7,3310.3,0.9737637]
[1768725463443,0.94897774,3311.6,3310.3,0.9737637]
[1768725463643,0.94897774,3311.5,3310.3,0.9737637]
[1768725463837,0.316394,3311.8,3310.3,0.9737637]
[1768725464036,0.94905009,3311.7,3310.3,0.9737637]
[1768725464238,0.94905009,3311.6,3310.3,0.9737637]
[1768725464440,0.94905009,3311.5,3310.3,0.9737637]
[1768725464730,0.316394,3311.8,3310.3,0.9737637]
[1768725464930,0.94915228,3311.7,3310.3,0.9737637]
[1768725465132,0.94915228,3311.6,3310.3,0.9737637]
[1768725465333,0.94915228,3311.5,3310.3,0.9737637]
[1768725465637,0.316394,3311.8,3310.3,0.9737637]
[1768725465831,0.94928638,3311.7,3310.3,0.9737637]
[1768725466041,0.94928638,3311.6,3310.3,0.9737637]
[1768725466242,0.94928638,3311.5,3310.3,0.9737637]
[1768725466441,0.316394,3311.8,3310.3,0.9737637]
[1768725466637,0.94928584,3311.7,3310.3,0.9737637]
[1768725466833,0.94928584,3311.6,3310.3,0.9737637]
[1768725467040,0.316394,3312.2,3310.7,0.9737637]
[1768725467239,0.94926798,3312.1,3310.7,0.9737637]
[1768725467439,0.94926798,3312.0,3310.7,0.9737637]
[1768725467637,0.94926798,3311.9,3310.7,0.9737637]
[1768725467836,0.94926798,3311.8,3310.7,0.9737637]
[1768725468045,0.94926798,3311.7,3310.7,0.9737637]
[1768725468245,0.94926798,3311.6,3310.7,0.9737637]
[1768725468449,0.316394,3312.2,3310.7,0.9737637]
[1768725468649,0.94912533,3312.1,3310.7,0.9737637]
[1768725468835,0.94912533,3312.0,3310.7,0.9737637]
[1768725469039,0.94912533,3311.9,3310.7,0.9737637]
[1768725469349,0.94912533,3311.8,3310.7,0.9737637]
[1768725469649,0.94912533,3311.7,3310.7,0.9737637]
[1768725469849,0.316394,3312.2,3310.7,0.9737637]
[1768725470052,0.94905403,3312.1,3310.7,0.9737637]
[1768725470242,0.94905403,3312.0,3310.7,0.9737637]
[1768725470443,0.94905403,3311.9,3310.7,0.9737637]
[1768725470643,0.94905403,3311.8,3310.7,0.9737637]
[1768725470850,0.94905403,3311.7,3310.7,0.9737637]
[1768725471053,0.316394,3312.2,3310.7,0.9737637]
[1768725471258,0.94897083,3312.1,3310.7,0.9737637]
[1768725471550,0.94897083,3312.0,3310.7,0.9737637]
[1768725471747,0.94897083,3311.9,3310.7,0.9737637]
[1768725471951,0.94897083,3311.8,3310.7,0.9737637]
[1768725472150,0.94897083,3311.7,3310.7,0.9737637]
[1768725472354,0.316394,3312.2,3310.7,0.9737637]
[1768725472551,0.94878756,3312.1,3310.7,0.9737637]
[1768725472754,0.94878756,3312.0,3310.7,0.9737637]
[1768725472953,0.94878756,3311.9,3310.7,0.9737637]
[1768725473153,0.316394,3312.2,3310.7,0.9737637]
[1768725473349,0.94860014,3312.1,3310.4,0.146]
[1768725473554,0.94860014,3312.0,3310.9,0.9737637]
[1768725473747,0.94860014,3311.9,3310.9,0.9737637]
[1768725473948,0.316394,3312.2,3310.9,0.9737637]
[1768725474148,0.94859934,3312.1,3310.9,0.9737637]
[1768725474349,0.94859934,3312.0,3310.9,0.9737637]
[1768725474649,0.94859934,3311.9,3310.9,0.9737637]
[1768725474847,0.316394,3312.2,3310.9,0.9737637]
[1768725475057,0.95159324,3312.1,3310.9,0.9737637]
[1768725475254,0.95159324,3312.0,3310.9,0.9737637]
[1768725475456,0.95159324,3311.9,3310.9,0.9737637]
[1768725475656,0.316394,3312.2,3310.9,0.9737637]
[1768725475959,0.95147481,3312.1,3310.9,0.9737637]
[1768725476158,0.95147481,3312.0,3310.9,0.9737637]
[1768725476459,0.316394,3312.2,3310.9,0.9737637]
[1768725476650,0.95137885,3312.1,3310.9,0.9737637]
[1768725476849,0.95137885,3312.0,3310.9,0.9737637]
[1768725477050,0.316394,3312.2,3310.9,0.9737637]
[1768725477260,0.95137867,3312.1,3310.9,0.9737637]
[1768725477458,0.95137867,3312.0,3311.4,0.97337439]
[1768725477658,0.316394,3312.2,3311.4,0.97337439]
[1768725477860,0.95130025,3312.1,3311.4,0.97337439]
[1768725478059,0.95130025,3312.0,3311.4,0.97337439]
[1768725478254,0.316394,3312.2,3311.4,0.97337439]
[1768725478455,0.95123767,3312.1,3311.4,0.97337439]
[1768725478647,0.95123767,3312.0,3311.4,0.97337439]
[1768725478853,0.316394,3312.2,3311.4,0.97337439]
[1768725479156,0.95123747,3312.1,3311.4,0.97337439]
[1768725479360,0.95123747,3312.0,3311.4,0.97337439]
[1768725479661,0.316394,3312.2,3311.4,0.97337439]
[1768725479962,0.95118776,3312.1,3311.4,0.97337439]
[1768725480260,0.95118776,3312.0,3311.4,0.97337439]
[1768725480562,0.316394,3312.2,3311.4,0.97337439]
[1768725480761,0.95118476,3312.1,3311.4,0.97337439]
[1768725480954,0.95118476,3312.0,3311.4,0.97337439]
[1768725481155,0.316394,3312.2,3311.4,0.97337439]
[1768725481356,0.95118325,3312.1,3311.4,0.97337439]
[1768725481557,0.95118325,3312.0,3311.4,0.97337439]
[1768725481855,0.316394,3312.2,3311.4,0.97337439]
[1768725482155,0.95115045,3312.1,3311.4,0.97337439]
[1768725482356,0.95115045,3312.0,3311.4,0.97337439]
[1768725482564,0.316394,3312.2,3311.4,0.97337439]
[1768725482759,0.95112812,3312.1,3311.4,0.97337439]
[1768725482955,0.95112812,3312.0,3311.4,0.97337439]
[1768725483150,0.316394,3312.2,3311.4,0.97337439]
[1768725483360,0.95111649,3312.1,3311.4,0.97337439]
[1768725483560,0.95111649,3312.0,3311.4,0.97337439]
[1768725483757,0.316394,3312.2,3311.4,0.97337439]
[1768725483961,0.9511158,3312.1,3311.4,0.97337439]
[1768725484162,0.9511158,3312.0,3311.4,0.97337439]
[1768725484366,0.316394,3312.2,3311.4,0.97337439]
[1768725484556,0.95110588,3312.1,3311.4,0.97337439]
[1768725484856,0.95110588,3312.0,3311.4,0.97337439]
[1768725485164,0.316394,3312.2,3311.4,0.97337439]
[1768725485360,0.95108556,3312.1,3311.4,0.97337439]
[1768725485556,0.316394,3312.2,3311.4,0.97337439]
[1768725485756,0.95108556,3312.1,3311.4,0.97337439]
[1768725485956,0.316394,3312.2,3311.4,0.97337439]
[1768725486156,0.95108556,3312.1,3311.4,0.97337439]
[1768725486356,0.316394,3312.2,3311.4,0.97337439]
[1768725486563,0.95108604,3312.1,3311.4,0.97337439]
[1768725486763,0.95108604,3312.0,3311.4,0.97337439]
[1768725486962,0.316394,3312.2,3311.4,0.97337439]
[1768725487263,0.95108604,3312.1,3311.4,0.97337439]
[1768725487457,0.95108604,3312.0,3311.4,0.97337439]
[1768725487658,0.316394,3312.2,3311.4,0.97337439]
[1768725487858,0.95112579,3312.1,3311.4,0.97337439]
[1768725488158,0.95112579,3312.0,3311.4,0.97337439]
[1768725488358,0.316394,3312.2,3311.4,0.97337439]
[1768725488558,0.95117748,3312.1,3311.4,0.97337439]
[1768725488757,0.316394,3312.2,3311.4,0.97337439]
[1768725488959,0.95117635,3312.1,3311.4,0.97337439]
[1768725489262,0.316394,3312.2,3311.4,0.97337439]
[1768725489461,0.95121989,3312.1,3311.4,0.97337439]
[1768725489661,0.316394,3312.2,3311.4,0.97337439]
[1768725489863,0.95121989,3312.1,3311.4,0.97337439]
[1768725490159,0.316394,3312.2,3311.4,0.97337439]
[1768725490363,0.95128098,3312.1,3311.4,0.97337439]
[1768725490563,0.316394,3312.2,3311.4,0.97337439]
[1768725490765,0.95128098,3312.1,3311.4,0.97337439]
[1768725490968,0.316394,3312.2,3311.4,0.97337439]
[1768725491154,0.95128098,3312.1,3311.4,0.97337439]
[1768725491360,0.316394,3312.2,3311.4,0.97337439]
[1768725491559,0.951359,3312.1,3311.4,0.97337439]
[1768725491759,0.316394,3312.2,3311.4,0.97337439]
[1768725491970,0.951359,3312.1,3311.4,0.97337439]
[1768725492266,0.316394,3312.2,3311.4,0.97337439]
[1768725492460,0.95140487,3312.1,3311.4,0.97337439]
[1768725492775,0.316394,3312.2,3311.4,0.97337439]
[1768725493066,0.95140339,3312.1,3311.4,0.97337439]
[1768725493266,0.95146337,3312.0,3311.4,0.97337439]
[1768725493467,0.316394,3312.2,3311.4,0.97337439]
[1768725493670,0.95146337,3312.1,3311.4,0.97337439]
[1768725493855,0.95146337,3312.0,3311.4,0.97337439]
[1768725494054,0.316394,3312.2,3311.4,0.97337439]
[1768725494369,0.95146283,3312.1,3311.6,0.97337439]
[1768725494558,0.316394,3312.2,3311.6,0.97337439]
[1768725494758,0.95153534,3312.1,3311.6,0.97337439]
[1768725494962,0.316394,3312.2,3311.6,0.97337439]
[1768725495167,0.95153376,3312.1,3311.6,0.97337439]
[1768725495462,0.50548979,3312.4,3311.6,0.97337439]
[1768725495666,0.95159834,3312.3,3311.6,0.97337439]
[1768725495870,0.95159834,3312.2,3311.6,0.97337439]
[1768725496067,0.95159834,3312.1,3311.6,0.97337439]
[1768725496361,0.50548979,3312.4,3311.6,0.97337439]
[1768725496562,0.95168335,3312.3,3311.6,0.97337439]
[1768725496762,0.95168335,3312.2,3311.6,0.97337439]
[1768725496961,0.95168335,3312.1,3311.6,0.97337439]
[1768725497163,0.50548979,3312.4,3311.6,0.97337439]
[1768725497365,0.95176724,3312.3,3311.6,0.97337439]
[1768725497573,0.95176724,3312.2,3311.6,0.97337439]
[1768725497769,0.95176724,3312.1,3311.6,0.97337439]
[1768725497967,0.50548979,3312.4,3311.6,0.97337439]
[1768725498168,0.95176724,3312.3,3311.6,0.97337439]
[1768725498369,0.95176724,3312.2,3311.6,0.97337439]
[1768725498669,0.95176724,3312.1,3311.6,0.97337439]
[1768725498874,0.50548979,3312.4,3311.6,0.97337439]
[1768725499071,0.95183205,3312.3,3311.6,0.97337439]
[1768725499273,0.95183205,3312.2,3311.6,0.97337439]
[1768725499475,0.95183205,3312.1,3311.6,0.97337439]
[1768725499667,0.95183205,3312.0,3311.6,0.97337439]